bitfinex/quotes_SOLUSD_20251207
["timestamp","ask_amount","ask_price","bid_price","bid_amount"]
[1765087402754,8.80994492,132.89,132.87,0.68]
[1765087403052,17.06994492,132.89,132.87,0.68]
[1765087403242,26.97671232,132.9,132.87,0.68]
[1765087403442,15.78482645,132.9,132.87,0.68]
[1765087403872,16.48482645,132.9,132.87,0.68]
[1765087404353,16.48482645,132.9,132.87,16.46482645]
[1765087404560,16.48482645,132.9,132.88,0.67]
[1765087405654,15.78482645,132.9,132.88,0.67]
[1765087405847,16.48482645,132.9,132.88,0.67]
[1765087407251,35.73268624,132.9,132.87,0.67]
[1765087410659,32.2696529,132.9,132.87,0.67]
[1765087411051,24.0096529,132.9,132.87,0.67]
[1765087411235,32.2696529,132.9,132.87,0.67]
[1765087416363,16.48482645,132.9,132.87,0.67]
[1765087417151,9.50994492,132.89,132.86,23.31134909]
[1765087417355,9.50994492,132.89,132.86,16.45482645]
[1765087417553,8.96,132.88,132.85,8.19707267]
[1765087417935,8.26,132.88,132.85,8.19707267]
[1765087418136,17.15707267,132.88,132.85,27.00611092]
[1765087418335,8.96,132.88,132.85,27.00611092]
[1765087419155,0.7,132.87,132.85,27.00611092]
[1765087421468,8.26,132.88,132.85,27.00611092]
[1765087421644,8.96,132.88,132.85,27.00611092]
[1765087421963,0.7,132.87,132.85,27.00611092]
[1765087422544,0.7,132.87,132.85,8.19707267]
[1765087423564,8.96,132.88,132.85,8.19707267]
[1765087424642,8.96,132.88,132.85,27.00747471]
[1765087425246,16.48562891,132.88,132.85,19.48040204]
[1765087425446,16.48562891,132.88,132.85,0.67]
[1765087437562,16.48562891,132.88,132.85,2.88559949]
[1765087437867,16.48562891,132.88,132.85,25.48702337]
[1765087439379,16.48562891,132.88,132.85,2.88559949]
[1765087440069,24.2132566,132.88,132.85,2.88559949]
[1765087440277,24.2132566,132.88,132.85,0.67]
[1765087442587,16.48562891,132.88,132.85,0.67]
[1765087443094,16.48562891,132.88,132.85,23.27142388]
[1765087443586,16.48562891,132.88,132.85,0.67]
[1765087444262,9.46994492,132.87,132.84,0.2]
[1765087444765,31.52482989,132.86,132.84,0.2]
[1765087444966,39.05184441,132.86,132.84,0.2]
[1765087445568,0.66,132.85,132.84,0.2]
[1765087446574,39.05184441,132.86,132.84,0.2]
[1765087451377,0.66,132.85,132.84,0.2]
[1765087452462,39.05184441,132.86,132.84,0.2]
[1765087453592,16.44701452,132.86,132.84,0.2]
[1765087453771,0.66,132.85,132.84,0.2]
[1765087453972,16.99723133,132.85,132.84,0.2]
[1765087456590,16.33723133,132.85,132.84,0.85]
[1765087475107,16.33723133,132.85,132.84,0.2]
[1765087475306,17.05723133,132.85,132.84,0.2]
[1765087475703,16.33723133,132.85,132.84,0.2]
[1765087476009,16.33723133,132.85,132.84,0.86]
[1765087477213,16.33723133,132.85,132.84,0.2]
[1765087478209,8.80994492,132.85,132.84,0.86]
[1765087480015,8.80994492,132.85,132.84,0.2]
[1765087480214,16.33723133,132.85,132.84,0.2]
[1765087481390,17.05723133,132.85,132.84,0.2]
[1765087481802,16.33723133,132.85,132.84,0.2]
[1765087482514,16.33723133,132.85,132.84,0.86]
[1765087484611,8.80994492,132.85,132.84,0.86]
[1765087485619,8.80994492,132.85,132.84,0.2]
[1765087485917,9.52994492,132.85,132.84,0.2]
[1765087486085,8.80994492,132.85,132.84,0.2]
[1765087490718,8.80994492,132.85,132.84,0.88]
[1765087496530,8.80994492,132.85,132.84,0.2]
[1765087498427,8.80994492,132.85,132.84,0.92]
[1765087500937,17.00723133,132.85,132.84,0.2]
[1765087501113,16.33723133,132.85,132.84,0.2]
[1765087502015,3.93148384,132.93,132.84,28.22057359]
[1765087502212,0.67,132.95,132.9,3.46385654]
[1765087502431,0.67,132.94,132.9,3.46385654]
[1765087502610,0.67,132.94,132.91,0.72]
[1765087502811,0.67,132.94,132.91,8.98]
[1765087503329,17.06994492,132.93,132.88,3.46385654]
[1765087503632,20.53380146,132.93,132.89,8.98]
[1765087503821,8.80994492,132.91,132.87,4.18385654]
[1765087504020,9.47994492,132.91,132.88,9.7]
[1765087504224,17.00389377,132.91,132.88,9.7]
[1765087504424,17.00389377,132.91,132.88,12.44385654]
[1765087504839,17.00389377,132.91,132.89,0.72]
[1765087505841,17.00389377,132.91,132.88,13.16385654]
[1765087506340,0.67,132.9,132.88,13.16385654]
[1765087507031,16.33389377,132.91,132.88,13.16385654]
[1765087507222,17.00389377,132.91,132.88,13.16385654]
[1765087507623,17.00389377,132.91,132.89,4.18385654]
[1765087510344,25.26389377,132.91,132.89,4.18385654]
[1765087512847,8.80994492,132.92,132.9,4.18385654]
[1765087513025,17.06994492,132.92,132.9,4.18385654]
[1765087513221,17.06994492,132.92,132.91,4.18385654]
[1765087513634,17.06994492,132.92,132.89,7.52498938]
[1765087513842,17.06994492,132.92,132.9,4.18385654]
[1765087514323,17.06994492,132.92,132.91,0.72]
[1765087515041,8.93,132.93,132.91,0.72]
[1765087524050,8.93,132.93,132.91,4.18385654]
[1765087524051,8.26,132.93,132.91,4.18385654]
[1765087524249,8.93,132.93,132.91,4.18385654]
[1765087525456,7.52237237,132.94,132.91,3.46385654]
[1765087525645,16.45237237,132.94,132.92,0.69]
[1765087527665,16.45237237,132.94,132.92,4.15385654]
[1765087530056,17.06994492,132.94,132.93,4.15385654]
[1765087530254,17.06994492,132.94,132.91,7.52388748]
[1765087530450,112.49120536,132.96,132.93,3.46385654]
[1765087530654,8.80994492,132.95,132.93,3.46385654]
[1765087530973,9.47994492,132.95,132.93,4.15385654]
[1765087532787,8.26,132.96,132.94,4.15385654]
[1765087532964,17.06994492,132.96,132.95,3.46385654]
[1765087533383,17.06994492,132.96,132.95,4.15385654]
[1765087535686,8.26,132.96,132.95,4.15385654]
[1765087536390,8.26,132.96,132.95,2.90255355]
[1765087539567,8.80994492,132.97,132.95,2.90255355]
[1765087539773,8.80994492,132.97,132.96,2.90255355]
[1765087540769,8.80994492,132.97,132.96,0.69]
[1765087541092,8.80994492,132.97,132.95,2.90255355]
[1765087541663,9.47994492,132.97,132.95,2.90255355]
[1765087543196,8.80994492,132.97,132.95,2.90255355]
[1765087543365,8.80994492,132.97,132.95,2.21255355]
[1765087543567,8.80994492,132.97,132.96,0.69]
[1765087543785,9.47994492,132.97,132.95,2.90255355]
[1765087545676,8.80994492,132.97,132.95,2.90255355]
[1765087545877,8.80994492,132.97,132.96,0.69]
[1765087546192,8.80994492,132.97,132.96,2.90255355]
[1765087546399,8.80994492,132.97,132.96,0.69]
[1765087546602,9.47994492,132.97,132.95,2.21255355]
[1765087546801,16.33050102,132.97,132.94,0.69]
[1765087547007,0.67,132.96,132.94,2.90255355]
[1765087547302,17.00050102,132.97,132.94,2.90255355]
[1765087550384,17.00050102,132.97,132.93,9.73477907]
[1765087550580,17.00050102,132.97,132.95,0.67]
[1765087551705,0.67,132.96,132.93,8.19222552]
[1765087551907,8.80994492,132.95,132.9,35.11966983]
[1765087552086,8.80994492,132.95,132.91,2.88255355]
[1765087552286,0.67,132.94,132.91,2.88255355]
[1765087552893,0.67,132.94,132.91,10.40640325]
[1765087553505,0.67,132.94,132.92,0.67]
[1765087554400,0.67,132.94,132.91,7.5238497]
[1765087554601,0.67,132.94,132.91,8.1938497]
[1765087556021,8.80994492,132.93,132.91,8.1938497]
[1765087556323,8.80994492,132.93,132.9,16.4543018]
[1765087556501,9.47994492,132.93,132.9,18.66685535]
[1765087556925,9.47994492,132.93,132.91,0.67]
[1765087559726,9.47994492,132.93,132.9,9.73685535]
[1765087559924,9.47994492,132.93,132.91,0.68]
[1765087560805,8.1918264,132.95,132.92,2.21255355]
[1765087561008,9.47994492,132.95,132.92,2.21255355]
[1765087561212,9.47994492,132.95,132.93,0.68]
[1765087561407,8.80994492,132.95,132.93,0.68]
[1765087561910,9.47994492,132.95,132.93,0.68]
[1765087562107,9.47994492,132.95,132.93,2.89255355]
[1765087562525,8.80994492,132.95,132.93,0.68]
[1765087562739,0.67,132.96,132.94,0.68]
[1765087564336,0.67,132.96,132.93,8.20272923]
[1765087565441,8.19109214,132.96,132.93,0.68]
[1765087565615,8.80994492,132.95,132.92,0.68]
[1765087565810,9.47994492,132.95,132.92,0.68]
[1765087566434,17.00164791,132.95,132.92,0.68]
[1765087574351,16.33164791,132.95,132.92,0.68]
[1765087574528,0.67,132.94,132.92,0.68]
[1765087575230,16.33164791,132.95,132.92,0.68]
[1765087575551,17.00164791,132.95,132.92,0.68]
[1765087577753,0.67,132.94,132.91,2.21255355]
[1765087577929,0.67,132.94,132.9,9.73681339]
[1765087578131,0.67,132.94,132.91,0.68]
[1765087579034,8.19235444,132.94,132.91,0.68]
[1765087580267,8.19235444,132.94,132.91,2.89255355]
[1765087581762,8.19235444,132.94,132.91,0.68]
[1765087583655,0.68,132.93,132.91,0.68]
[1765087584357,7.52235444,132.94,132.91,0.68]
[1765087584559,8.20235444,132.94,132.91,0.68]
[1765087584746,0.68,132.93,132.91,0.68]
[1765087584946,8.20235444,132.94,132.91,0.68]
[1765087585764,0.68,132.93,132.91,0.68]
[1765087586062,8.20235444,132.94,132.91,0.68]
[1765087592059,8.80994492,132.93,132.89,22.59121201]
[1765087592265,9.48994492,132.93,132.88,34.30653438]
[1765087592566,0.68,132.92,132.89,0.7]
[1765087594494,0.68,132.92,132.89,2.91255355]
[1765087594791,0.68,132.92,132.9,0.7]
[1765087610096,16.33323959,132.93,132.9,0.7]
[1765087610323,17.01323959,132.93,132.9,0.7]
[1765087611498,9.48994492,132.93,132.9,11.6842659]
[1765087611799,8.80994492,132.93,132.9,11.6842659]
[1765087611987,8.80994492,132.93,132.91,0.69]
[1765087612698,9.47994492,132.93,132.91,0.69]
[1765087613085,9.47994492,132.93,132.9,10.9842659]
[1765087613290,9.47994492,132.93,132.9,11.6742659]
[1765087616605,9.47994492,132.93,132.91,0.65]
[1765087617521,9.47994492,132.93,132.9,11.6342659]
[1765087618008,9.47994492,132.93,132.91,0.65]
[1765087618334,8.80994492,132.93,132.91,0.65]
[1765087618607,9.46994492,132.93,132.91,0.65]
[1765087619110,9.46994492,132.93,132.9,10.9842659]
[1765087619415,9.46994492,132.93,132.9,11.6342659]
[1765087620115,9.46994492,132.93,132.9,10.9842659]
[1765087620319,9.46994492,132.93,132.91,0.65]
[1765087620819,8.18180581,132.95,132.91,8.17386633]
[1765087620994,8.18180581,132.95,132.91,11.63391256]
[1765087620995,17.06994492,132.94,132.91,11.63391256]
[1765087621196,17.06994492,132.94,132.92,0.65]
[1765087621815,17.72994492,132.94,132.92,0.65]
[1765087622114,17.06994492,132.94,132.92,0.65]
[1765087622515,17.06994492,132.94,132.92,8.1733088]
[1765087622830,17.72994492,132.94,132.92,8.1733088]
[1765087623126,17.06994492,132.94,132.92,8.1733088]
[1765087623330,17.72994492,132.94,132.92,0.65]
[1765087623628,17.06994492,132.94,132.92,0.65]
[1765087623925,17.72994492,132.94,132.92,0.65]
[1765087627024,17.72994492,132.94,132.91,10.98374557]
[1765087627228,17.72994492,132.94,132.91,11.63374557]
[1765087627525,17.72994492,132.94,132.92,0.65]
[1765087628127,17.06994492,132.94,132.92,0.65]
[1765087628325,8.80994492,132.94,132.92,0.65]
[1765087630437,8.18180581,132.95,132.92,0.65]
[1765087630642,7.52180581,132.95,132.92,0.65]
[1765087630941,8.18180581,132.95,132.92,0.65]
[1765087631643,8.17954962,132.99,132.94,3.46004623]
[1765087631814,8.80994492,132.98,132.95,3.46004623]
[1765087632233,8.80994492,132.98,132.96,0.65]
[1765087632545,9.46994492,132.98,132.96,0.65]
[1765087633629,16.98987951,132.98,132.96,0.65]
[1765087636548,0.66,132.97,132.94,30.84440922]
[1765087636758,0.66,132.97,132.93,4.11004623]
[1765087636961,0.66,132.97,132.94,0.65]
[1765087637648,8.18105,132.97,132.94,0.65]
[1765087639055,8.18105,132.97,132.94,4.11004623]
[1765087640371,0.68,132.96,132.94,4.11004623]
[1765087641461,8.80994492,132.96,132.94,4.11004623]
[1765087642657,17.74994492,132.98,132.95,4.16004623]
[1765087643941,8.80994492,132.96,132.94,3.46004623]
[1765087644366,0.68,132.96,132.94,4.16004623]
[1765087645504,0.68,132.96,132.92,23.28781011]
[1765087645791,8.80994492,132.95,132.92,4.16004623]
[1765087646272,0.68,132.94,132.92,4.16004623]
[1765087648186,0.68,132.94,132.92,0.7]
[1765087648689,0.68,132.94,132.92,4.16004623]
[1765087651491,0.68,132.94,132.92,0.7]
[1765087653198,9.48994492,132.95,132.92,8.22331611]
[1765087653870,9.48994492,132.95,132.92,11.68336234]
[1765087654296,8.26,132.96,132.93,11.68277965]
[1765087654496,17.74994492,132.96,132.93,8.22273342]
[1765087654703,17.74994492,132.96,132.93,11.68277965]
[1765087658406,17.74994492,132.96,132.93,10.43580856]
[1765087663595,25.2710379,132.96,132.93,10.43580856]
[1765087663798,25.2710379,132.96,132.93,2.91307514]
[1765087671824,30.10792444,132.98,132.94,2.90307514]
[1765087672025,15.78011433,132.98,132.95,2.21307514]
[1765087672224,15.78011433,132.98,132.95,2.90307514]
[1765087672410,16.45011433,132.98,132.96,0.69]
[1765087672826,16.45011433,132.98,132.95,2.90307514]
[1765087673924,16.45011433,132.98,132.95,0.69]
[1765087687334,16.45011433,132.98,132.95,2.90307514]
[1765087689945,8.19011433,132.98,132.95,2.90307514]
[1765087690941,8.19011433,132.98,132.96,0.67]
[1765087691719,8.19011433,132.98,132.95,2.21307514]
[1765087691919,8.19011433,132.98,132.95,2.88307514]
[1765087694951,7.51959182,132.99,132.96,2.88307514]
[1765087695323,7.51959182,132.99,132.97,0.67]
[1765087695634,7.51959182,132.99,132.97,2.88307514]
[1765087696021,16.32953674,132.99,132.98,0.67]
[1765087696418,16.32953674,132.99,132.97,2.88307514]
[1765087699269,16.32953674,132.99,132.97,2.21307514]
[1765087699453,16.32953674,132.99,132.97,2.88307514]
[1765087700067,16.99953674,132.99,132.97,2.88307514]
[1765087700482,16.32953674,132.99,132.97,2.88307514]
[1765087704864,16.54891371,133.0,132.97,2.21307514]
[1765087705069,16.54891371,133.0,132.98,0.68]
[1765087705394,16.54891371,133.0,132.97,2.89307514]
[1765087706686,9.03,133.0,132.98,0.68]
[1765087706861,0.1,133.0,132.98,2.89307514]
[1765087707395,0.1,133.0,132.99,0.68]
[1765087713324,0.1,133.0,132.99,2.89307514]
[1765087714419,0.1,133.0,132.99,0.68]
[1765087716107,0.1,133.0,132.99,10.41243749]
[1765087717206,0.1,133.0,132.99,13.42255902]
[1765087718495,0.1,133.0,132.99,14.66354816]
[1765087718696,0.1,133.0,132.99,22.90354816]
[1765087733733,0.1,133.0,132.99,26.35761244]
[1765087735708,0.1,133.01,132.99,26.35761244]
[1765087735908,0.1,133.01,133.0,23.90699256]
[1765087736311,0.1,133.01,133.0,10.60734428]
[1765087738309,0.1,133.01,133.0,18.12614127]
[1765087738510,0.1,133.02,133.01,16.308864]
[1765087738729,0.1,133.02,133.01,28.69292828]
[1765087739130,0.1,133.02,133.01,31.70191763]
[1765087739533,0.1,133.02,133.01,39.22014934]
[1765087740216,0.1,133.03,133.01,39.22014934]
[1765087740424,0.1,133.03,133.02,4.14406428]
[1765087740825,0.1,133.03,133.02,7.1528273]
[1765087741138,0.1,133.03,133.02,7.6528273]
[1765087741739,0.1,133.03,133.02,15.17049381]
[1765087745245,1e-08,133.04,133.02,14.48049381]
[1765087745591,0.1,133.06,133.05,16.308864]
[1765087745744,0.1,133.06,133.05,28.00292828]
[1765087746062,0.1,133.09,133.05,31.45699256]
[1765087746232,0.1,133.09,133.07,6.90812856]
[1765087746567,0.1,133.09,133.07,15.14812856]
[1765087746869,0.1,133.09,133.08,27.9672054]
[1765087747240,0.1,133.09,133.08,27.2772054]
[1765087747446,0.1,133.09,133.08,38.52506342]
[1765087748851,0.78,133.09,133.08,38.52506342]
[1765087749684,0.1,133.09,133.08,38.52506342]
[1765087749889,0.1,133.09,133.08,39.21506342]
[1765087750102,0.1,133.09,133.08,35.76099914]
[1765087750291,0.1,133.09,133.08,39.21506342]
[1765087751093,0.1,133.09,133.08,38.52506342]
[1765087754886,0.1,133.09,133.08,39.21506342]
[1765087755978,0.1,133.09,133.08,35.76099914]
[1765087756185,0.1,133.09,133.08,39.21506342]
[1765087762526,0.1,133.09,133.08,35.5172054]
[1765087763616,0.82,133.09,133.08,27.2772054]
[1765087763825,0.82,133.09,133.08,35.5172054]
[1765087764396,0.82,133.09,133.08,19.2083414]
[1765087764994,0.82,133.09,133.08,3.45406428]
[1765087765291,0.82,133.09,133.07,3.45406428]
[1765087765922,0.82,133.09,133.06,15.75521163]
[1765087766220,0.82,133.09,133.07,3.45406428]
[1765087768400,0.82,133.09,133.06,3.45406428]
[1765087769301,8.33385251,133.09,133.05,3.45406428]
[1765087769822,0.72,133.08,133.04,10.97041229]
[1765087771226,8.23433364,133.08,133.04,10.97041229]
[1765087772021,0.72,133.07,133.04,10.97041229]
[1765087772227,0.72,133.07,133.02,8.24]
[1765087772411,0.72,133.07,133.04,3.45406428]
[1765087773212,8.23495693,133.07,133.04,3.45406428]
[1765087773614,0.72,133.06,133.04,3.45406428]
[1765087774522,8.23546526,133.06,133.04,3.45406428]
[1765087774913,0.72,133.05,133.04,3.45406428]
[1765087775808,0.72,133.05,133.03,3.45406428]
[1765087776010,8.23601248,133.05,133.0,23.82748009]
[1765087776216,8.23601248,133.05,133.01,3.45406428]
[1765087776425,0.72,133.04,133.01,3.45406428]
[1765087777429,0.72,133.04,133.02,3.45406428]
[1765087778014,8.23678385,133.04,133.02,3.45406428]
[1765087778414,0.72,133.03,133.01,3.45406428]
[1765087778612,0.72,133.03,133.0,3.45406428]
[1765087778810,0.72,133.03,133.02,3.45406428]
[1765087779810,0.72,133.03,133.01,3.45406428]
[1765087780323,0.72,133.03,133.01,2.21037113]
[1765087786534,8.2371028,133.03,133.01,2.21037113]
[1765087787035,0.72,133.02,133.01,2.21037113]
[1765087794346,0.72,133.02,133.0,2.21037113]
[1765087795545,0.72,133.02,132.99,18.62951851]
[1765087796119,8.237705,133.02,132.99,18.62951851]
[1765087796319,8.237705,133.02,132.99,2.21037113]
[1765087796623,0.7,133.01,132.99,2.21037113]
[1765087797144,0.7,133.01,133.0,2.21037113]
[1765087801047,0.7,133.01,132.99,2.21037113]
[1765087801247,0.7,133.01,132.99,2.93037113]
[1765087801547,8.217705,133.02,132.99,2.93037113]
[1765087802448,0.7,133.01,132.99,2.93037113]
[1765087803336,16.32704632,133.03,132.99,2.93037113]
[1765087803538,0.7,133.02,132.99,9.72963272]
[1765087803725,0.7,133.03,133.0,0.72]
[1765087804326,0.7,133.03,132.99,10.44963272]
[1765087804533,0.7,133.03,133.0,2.21037113]
[1765087804732,0.7,133.03,133.01,2.21037113]
[1765087804940,0.7,133.03,133.01,2.93037113]
[1765087806031,0.7,133.03,133.01,2.21037113]
[1765087806231,0.7,133.03,133.01,2.93037113]
[1765087808347,0.7,133.03,133.01,2.21037113]
[1765087810857,19.59220255,133.09,133.02,27.49923513]
[1765087811070,18.89220255,133.09,133.08,2.21037113]
[1765087811378,0.1,133.09,133.08,2.21037113]
[1765087811526,0.8,133.09,133.08,2.21037113]
[1765087811858,8.31371252,133.09,133.08,2.21037113]
[1765087815959,0.8,133.09,133.08,2.21037113]
[1765087823373,0.8,133.09,133.06,7.51540373]
[1765087823677,0.8,133.09,133.08,2.21037113]
[1765087823882,0.1,133.09,133.08,2.21037113]
[1765087824177,0.1,133.09,133.08,2.87037113]
[1765087826960,0.1,133.09,133.08,10.38464825]
[1765087840399,0.1,133.09,133.08,11.62398937]
[1765087852517,0.1,133.09,133.08,14.63184739]
[1765087865233,0.1,133.09,133.08,11.18213514]
[1765087865430,0.1,133.09,133.08,14.63184739]
[1765087866333,0.1,133.09,133.08,30.94071139]
[1765087876053,0.81,133.09,133.08,10.96398937]
[1765087877142,0.81,133.09,133.08,13.97207359]
[1765087879440,0.81,133.09,133.08,10.52236134]
[1765087879635,0.81,133.09,133.08,13.97207359]
[1765087880169,0.1,133.1,133.08,13.97207359]
[1765087880771,0.1,133.1,133.08,10.96398937]
[1765087881146,0.1,133.1,133.09,3.44971225]
[1765087882048,0.1,133.1,133.09,10.96124544]
[1765087882862,0.1,133.1,133.09,19.18495796]
[1765087883438,0.1,133.1,133.09,27.42495796]
[1765087885674,0.1,133.1,133.09,27.92495796]
[1765087898367,0.73,133.1,133.09,27.21495796]
[1765087899393,0.1,133.1,133.09,27.21495796]
[1765087900966,0.1,133.1,133.09,23.76524571]
[1765087901171,0.1,133.1,133.09,27.92495796]
[1765087902388,0.1,133.1,133.09,26.68224505]
[1765087908105,0.1,133.11,133.09,26.68224505]
[1765087908287,0.1,133.11,133.1,2.91699934]
[1765087908690,0.1,133.11,133.1,41.00553199]
[1765087909199,0.1,133.11,133.1,46.31168065]
[1765087909513,0.73,133.11,133.1,21.77966865]
[1765087909809,0.73,133.11,133.09,9.72069515]
[1765087909979,0.73,133.11,133.09,2.20699934]
[1765087910287,17.138864,133.11,133.09,2.20699934]
[1765087910483,0.63,133.1,133.09,2.20699934]
[1765087911199,0.63,133.1,133.07,7.51484181]
[1765087913301,0.63,133.1,133.06,15.77521331]
[1765087913503,19.34586334,133.1,133.06,15.77521331]
[1765087914011,0.63,133.09,133.06,15.77521331]
[1765087919220,2.20699934,133.07,133.02,2.20699934]
[1765087919411,2.20699934,133.07,133.03,8.26]
[1765087919611,0.63,133.06,133.03,8.26]
[1765087919813,2.83699934,133.06,133.03,8.26]
[1765087920017,0.63,133.06,133.02,9.72429048]
[1765087920326,0.63,133.06,133.03,0.72]
[1765087920626,10.35429048,133.06,133.02,10.44429048]
[1765087921421,0.63,133.05,133.02,10.44429048]
[1765087928003,0.63,133.05,133.02,8.23729114]
[1765087928200,0.63,133.05,133.02,10.44429048]
[1765087935038,0.63,133.05,133.02,8.23729114]
[1765087937556,23.20081593,133.05,133.02,8.23729114]
[1765087937749,0.63,133.05,133.02,8.23729114]
[1765087937959,0.63,133.05,133.02,7.51729114]
[1765087938150,0.63,133.05,133.02,8.23729114]
[1765087938833,0.63,133.05,133.02,10.44429048]
[1765087939155,0.63,133.05,133.02,9.72429048]
[1765087939329,0.63,133.05,133.03,0.72]
[1765087941433,0.63,133.05,133.02,10.44429048]
[1765087942461,0.63,133.05,133.02,9.72429048]
[1765087942654,8.14540994,133.06,133.03,0.72]
[1765087943160,8.14540994,133.06,133.01,8.26]
[1765087943161,2.83699934,133.05,133.01,8.26]
[1765087943467,2.20699934,133.04,133.01,8.26]
[1765087943652,2.83699934,133.04,133.01,8.26]
[1765087943850,0.63,133.03,133.01,8.26]
[1765087944375,0.63,133.03,133.0,0.72]
[1765087944575,0.63,133.03,132.99,17.98600285]
[1765087944783,0.63,133.03,133.01,0.72]
[1765087945190,0.63,133.03,133.0,0.72]
[1765087945780,0.63,133.03,133.0,2.92699934]
[1765087947352,0.63,133.03,133.0,0.72]
[1765087949387,8.14708193,133.04,133.0,8.23871544]
[1765087949787,8.14708193,133.04,133.01,0.72]
[1765087955688,0.63,133.03,133.0,0.72]
[1765087955892,8.14708193,133.04,133.01,0.72]
[1765087976529,7.51708193,133.04,133.01,0.72]
[1765087976736,8.14708193,133.04,133.01,0.72]
[1765087980534,0.63,133.04,133.01,0.72]
[1765087981725,8.14679057,133.04,133.01,0.72]
[1765087984336,8.14663898,133.04,133.01,0.72]
[1765087984545,7.51663898,133.04,133.01,0.72]
[1765087986164,8.14663898,133.04,133.01,0.72]
[1765087988057,0.63,133.03,133.01,0.72]
[1765087988254,0.63,133.03,132.99,8.93]
[1765087988558,4.08430778,133.03,132.99,8.26]
[1765087988753,0.63,133.03,133.0,0.67]
[1765087989757,8.14761861,133.03,133.0,0.67]
[1765087995467,7.51761861,133.03,133.0,0.67]
[1765087995848,7.51761861,133.03,133.0,4.12430778]
[1765087996046,7.51761861,133.03,133.01,0.67]
[1765087996792,7.51761861,133.03,133.0,3.45430778]
[1765087996977,19.41881785,133.06,133.01,4.12430778]
[1765087997154,0.63,133.05,133.01,4.12430778]
[1765087997371,0.63,133.05,133.02,0.67]
[1765087998000,8.1461932,133.05,133.02,0.67]
[1765087999610,0.63,133.04,133.0,0.67]
[1765087999908,3.45430778,133.03,133.0,0.67]
[1765088000108,4.08430778,133.04,133.01,0.67]
[1765088000410,0.63,133.03,133.0,0.66]
[1765088001272,7.51766651,133.02,133.0,0.66]
[1765088006232,7.5171014,133.03,133.0,0.66]
[1765088008808,7.5171014,133.03,133.0,4.11430778]
[1765088009014,7.5171014,133.03,133.01,0.66]
[1765088009519,0.63,133.06,133.01,4.11430778]
[1765088009718,16.9553515,133.06,133.01,11.63251634]
[1765088010025,16.9553515,133.06,133.02,0.66]
[1765088010227,0.63,133.05,133.02,0.66]
[1765088010913,8.14612477,133.05,133.02,0.66]
[1765088014842,10.97043255,133.05,133.02,0.66]
[1765088015046,0.63,133.04,133.02,0.66]
[1765088015223,11.60043255,133.05,133.02,0.66]
[1765088017260,8.14612477,133.05,133.02,0.66]
[1765088019039,11.60116148,133.04,133.0,0.66]
[1765088019248,0.63,133.03,133.0,0.66]
[1765088020134,8.14738483,133.03,133.0,0.66]
[1765088024248,7.51738483,133.03,133.0,0.66]
[1765088024864,8.89,133.04,133.0,10.38954754]
[1765088024865,7.51658809,133.04,133.0,10.38954754]
[1765088025354,7.51658809,133.04,133.01,0.66]
[1765088028159,8.14658809,133.04,133.01,0.66]
[1765088036855,7.51658809,133.04,133.01,0.66]
[1765088037654,8.14658809,133.04,133.01,0.66]
[1765088046269,7.51658809,133.04,133.01,0.66]
[1765088046966,7.51658809,133.04,133.01,2.87092397]
[1765088047168,7.5161128,133.05,133.02,2.21092397]
[1765088047469,7.5161128,133.05,133.02,2.91092397]
[1765088047670,7.5161128,133.05,133.03,0.7]
[1765088061470,15.77563717,133.06,133.03,0.7]
[1765088066486,16.40563717,133.06,133.03,0.7]
[1765088066782,15.77563717,133.06,133.03,0.7]
[1765088067987,8.26,133.06,133.03,8.21707846]
[1765088068389,8.26,133.06,133.04,0.67]
[1765088070293,26.77576484,133.07,133.04,0.67]
[1765088078499,10.45092397,133.07,133.04,8.18648862]
[1765088078996,10.45092397,133.07,133.05,0.67]